bitfinex-derivatives/quotes_SOLF0:USTF0_20240920
["timestamp","ask_amount","ask_price","bid_price","bid_amount"]
[1726846169018,3.3889,147.53,147.49,6.75931147]
[1726846169413,3.3889,147.53,147.49,3.3897]
[1726846169926,3.3892,147.52,147.49,6.79999088]
[1726846171124,3.3892,147.52,147.5,3.3896]
[1726846173319,3.3892,147.52,147.49,6.71546761]
[1726846173519,3.3894,147.51,147.49,3.3897]
[1726846173822,13.03,147.55,147.49,3.3897]
[1726846174023,13.03,147.55,147.49,6.82666555]
[1726846174223,3.3893,147.52,147.49,6.82666555]
[1726846175228,3.3893,147.52,147.5,3.3896]
[1726846176432,13.03,147.55,147.49,3.43696555]
[1726846176623,3.33887671,147.57,147.47,1.2952]
[1726846176819,13.03,147.57,147.48,1.3156]
[1726846177024,3.3886,147.55,147.52,3.3891]
[1726846177218,13.03,147.57,147.52,3.3891]
[1726846177833,3.3887,147.54,147.51,3.3893]
[1726846178127,13.03,147.55,147.49,1.408]
[1726846178428,13.03,147.55,147.49,4.7567057]
[1726846179630,3.3891,147.53,147.5,3.3895]
[1726846180431,13.03,147.59,147.49,17.7867057]
[1726846181037,3.3886,147.55,147.52,3.3892]
[1726846182720,3.3887,147.54,147.51,3.3892]
[1726846183035,13.03,147.55,147.49,4.7567057]
[1726846183233,3.3891,147.53,147.5,3.3895]
[1726846183528,13.03,147.55,147.49,4.7567057]
[1726846183732,13.03,147.57,147.49,4.7567057]
[1726846184034,3.3886,147.55,147.52,3.3891]
[1726846185319,3.3887,147.54,147.52,3.3891]
[1726846185524,3.3887,147.54,147.51,3.3893]
[1726846186729,3.389,147.53,147.5,3.3895]
[1726846187732,3.389,147.53,147.51,3.3894]
[1726846188034,3.389,147.53,147.49,4.7567057]
[1726846188638,3.389,147.53,147.5,3.3895]
[1726846188840,3.3892,147.52,147.5,3.3895]
[1726846189440,3.3892,147.52,147.49,4.7567057]
[1726846189441,3.3891,147.53,147.51,3.3894]
[1726846190329,3.3892,147.52,147.5,3.3895]
[1726846191041,13.03,147.51,147.47,1.2952]
[1726846191243,33.39,147.51,147.44,1.3308]
[1726846191542,13.03,147.48,147.44,1.3308]
[1726846191935,23.68644067,147.51,147.44,1.3308]
[1726846191936,8.34,147.46,147.44,1.3308]
[1726846192435,6.7768,147.56,147.44,1.3308]
[1726846192436,20.36,147.53,147.44,1.3308]
[1726846192643,8.34,147.48,147.44,1.3308]
[1726846193135,11.7301,147.48,147.45,3.3906]
[1726846193341,11.7301,147.48,147.44,1.3308]
[1726846193737,11.7301,147.48,147.44,4.7216]
[1726846193938,3.3901,147.48,147.44,4.7216]
[1726846194641,13.03,147.49,147.44,1.3308]
[1726846195349,3.3904,147.47,147.44,1.3308]
[1726846195935,3.3904,147.47,147.44,4.7217]
[1726846198247,3.3904,147.47,147.45,3.3908]
[1726846198548,3.3899,147.49,147.44,1.3308]
[1726846198753,13.03,147.51,147.47,3.3903]
[1726846199652,3.3897,147.5,147.47,3.3903]
[1726846200049,13.03,147.53,147.5,3.3896]
[1726846200250,13.03,147.53,147.44,1.3308]
[1726846200452,13.03,147.51,147.44,1.3308]
[1726846200653,3.3901,147.48,147.44,1.3308]
[1726846200951,13.03,147.48,147.44,1.3308]
[1726846201555,13.03,147.46,147.42,1.3003]
[1726846201850,13.03,147.44,147.37,2.7087]
[1726846202047,13.03,147.44,147.37,4.0167]
[1726846202241,13.03,147.44,147.38,3.3922]
[1726846202447,13.03,147.44,147.37,4.0167]
[1726846203654,3.3915,147.42,147.37,4.0167]
[1726846203857,13.03,147.44,147.37,4.0167]
[1726846204253,3.3914,147.43,147.39,3.392]
[1726846204860,3.3911,147.44,147.4,3.3918]
[1726846205352,13.03,147.46,147.37,4.0167]
[1726846205555,3.3914,147.43,147.39,3.392]
[1726846205955,3.3914,147.43,147.37,4.0167]
[1726846205956,13.03,147.44,147.37,4.0167]
[1726846206258,3.3917,147.42,147.38,3.3923]
[1726846206445,13.03,147.44,147.37,4.0167]
[1726846207053,3.3915,147.42,147.38,3.3922]
[1726846207254,13.03,147.44,147.38,3.3922]
[1726846207454,13.03,147.42,147.33,3.38412032]
[1726846207654,13.03,147.42,147.36,3.3928]
[1726846208051,13.03,147.42,147.37,3.3926]
[1726846208463,16.36650556,147.44,147.33,13.03]
[1726846208764,3.3915,147.42,147.38,3.3922]
[1726846208965,13.03,147.44,147.33,13.03]
[1726846209160,3.3915,147.42,147.39,3.3921]
[1726846209360,13.03,147.44,147.33,13.03]
[1726846209664,13.03,147.41,147.32,4.67934105]
[1726846209857,3.3919,147.4,147.37,3.3925]
[1726846211268,3.3922,147.39,147.37,3.3925]
[1726846211657,13.03,147.41,147.37,3.3925]
[1726846212363,3.392,147.4,147.37,3.3925]
[1726846212956,3.3922,147.39,147.37,3.3925]
[1726846213157,3.3922,147.39,147.36,3.3927]
[1726846213768,20.36,147.48,147.33,13.03]
[1726846214062,13.03,147.45,147.35,13.03]
[1726846214261,13.03,147.45,147.36,1.3993]
[1726846214465,1.15285941,147.47,147.36,2.7889]
[1726846214466,13.03,147.47,147.36,2.7889]
[1726846214858,3.3912,147.44,147.4,3.3917]
[1726846217259,13.03,147.5,147.4,3.37427059]
[1726846217464,13.03,147.5,147.41,1.3408]
[1726846217662,33.39,147.52,147.42,1.2905]
[1726846217869,13.03,147.54,147.43,13.03]
[1726846218369,3.3892,147.52,147.43,13.03]
[1726846218554,3.3892,147.52,147.43,16.47076536]
[1726846218969,3.3892,147.52,147.47,3.3901]
[1726846220166,3.3894,147.51,147.43,16.47076536]
[1726846220371,13.03,147.52,147.43,3.44076536]
[1726846220565,13.03,147.52,147.42,2.6197]
[1726846221273,3.3898,147.5,147.46,3.3904]
[1726846221473,13.03,147.54,147.43,13.03]
[1726846221866,13.03,147.54,147.49,3.3898]
[1726846222164,13.03,147.56,147.46,13.03]
[1726846222366,3.3886,147.55,147.51,3.3892]
[1726846222570,16.39407404,147.58,147.51,3.3892]
[1726846223868,13.03,147.56,147.49,2.6587]
[1726846224063,13.03,147.54,147.49,2.6587]
[1726846224263,3.389,147.53,147.49,2.6587]
[1726846224463,3.389,147.53,147.49,1.3133]
[1726846224765,3.389,147.53,147.49,4.703]
[1726846225073,3.3892,147.52,147.49,4.703]
[1726846225572,3.3892,147.52,147.49,1.3133]
[1726846225573,3.3896,147.5,147.49,1.3133]
[1726846225758,13.03,147.52,147.47,1.3708]
[1726846226968,3.3895,147.51,147.48,3.3901]
[1726846228175,3.3891,147.53,147.5,3.3896]
[1726846228369,13.03,147.54,147.47,1.3708]
[1726846228570,13.03,147.52,147.47,1.3708]
[1726846228766,3.3898,147.5,147.47,4.761]
[1726846229884,3.3893,147.52,147.47,1.3708]
[1726846230379,3.3893,147.52,147.49,3.3898]
[1726846230876,3.3894,147.51,147.49,3.3898]
[1726846231076,3.3894,147.51,147.48,3.39]
[1726846232277,23.78917203,147.57,147.47,4.761]
[1726846232278,3.3896,147.5,147.47,4.761]
[1726846233265,13.03,147.52,147.47,4.761]
[1726846233668,3.3898,147.5,147.47,4.761]
[1726846235881,3.3895,147.51,147.47,1.3708]
[1726846236086,13.03,147.54,147.47,1.3708]
[1726846236777,13.03,147.56,147.47,1.3708]
[1726846236983,3.3888,147.54,147.47,14.4008]
[1726846237371,13.03,147.56,147.47,1.3708]
[1726846237572,3.3893,147.52,147.47,1.3708]
[1726846237986,13.03,147.54,147.47,1.3708]
[1726846238783,3.3891,147.53,147.5,3.3895]
[1726846239683,3.3891,147.53,147.51,3.3893]
[1726846240077,3.3891,147.53,147.47,1.3708]
[1726846240078,13.03,147.54,147.47,1.3708]
[1726846240479,13.03,147.54,147.48,3.3899]
[1726846240685,3.3895,147.51,147.47,1.3708]
[1726846241184,3.3895,147.51,147.48,3.39]
[1726846241383,3.3896,147.5,147.48,3.39]
[1726846241582,23.80385679,147.58,147.47,1.3708]
[1726846241583,13.03,147.52,147.47,1.3708]
[1726846242486,3.39,147.49,147.47,4.7611]
[1726846242875,3.39,147.49,147.47,1.3708]
[1726846243381,3.39,147.49,147.47,4.7611]
[1726846243573,13.03,147.52,147.44,1.4066]
[1726846243776,13.03,147.52,147.46,3.3903]
[1726846244275,3.39,147.49,147.46,3.3903]
[1726846244473,3.39,147.49,147.47,3.3903]
[1726846245090,13.03,147.54,147.44,1.4066]
[1726846245591,13.03,147.54,147.48,3.3898]
[1726846246886,3.3896,147.5,147.48,3.3898]
[1726846248187,3.3895,147.51,147.48,3.3898]
[1726846248581,3.3892,147.52,147.49,3.3897]
[1726846249291,3.3894,147.51,147.49,3.3897]
[1726846250586,3.3894,147.51,147.48,3.39]
[1726846250989,3.3898,147.5,147.44,1.4066]
[1726846251189,13.03,147.54,147.44,1.4066]
[1726846251485,3.3895,147.51,147.44,1.4066]
[1726846251793,13.03,147.54,147.44,1.4066]
[1726846252189,3.3893,147.52,147.49,3.3897]
[1726846252390,13.03,147.54,147.45,13.03]
[1726846252584,23.80385679,147.58,147.45,13.03]
[1726846252585,13.03,147.56,147.45,13.03]
[1726846252789,3.3893,147.52,147.49,3.3897]
[1726846253091,13.03,147.54,147.49,3.3897]
[1726846253688,3.3895,147.51,147.48,3.39]
[1726846254491,3.3896,147.5,147.48,3.39]
[1726846255295,13.03,147.52,147.46,3.3904]
[1726846255498,13.03,147.48,147.44,1.4066]
[1726846255988,3.3906,147.46,147.44,1.4066]
[1726846256597,3.3906,147.46,147.44,4.7975]
[1726846256990,3.3904,147.47,147.44,4.7975]
[1726846257299,13.03,147.52,147.44,1.4066]
[1726846257488,3.39,147.49,147.44,1.4066]
[1726846258697,13.03,147.52,147.44,1.4066]
[1726846259401,3.3899,147.49,147.46,3.3904]
[1726846260695,13.03,147.49,147.44,4.7975]
[1726846260997,13.03,147.47,147.43,1.3858]
[1726846261197,3.3909,147.45,147.43,1.3858]
[1726846261495,13.03,147.47,147.4,1.3247]
[1726846261699,13.03,147.47,147.41,3.3915]
[1726846262484,3.391,147.44,147.41,3.3915]
[1726846262709,13.03,147.47,147.4,4.72452281]
[1726846262897,13.03,147.51,147.41,13.03]
[1726846263291,13.03,147.51,147.46,3.3905]
[1726846263490,13.03,147.51,147.41,13.03]
[1726846264000,3.3897,147.5,147.41,13.03]
[1726846264503,3.3897,147.5,147.46,3.3904]
[1726846265093,3.3894,147.51,147.43,13.03]
[1726846265300,3.3894,147.51,147.44,1.2934]
[1726846265593,3.3897,147.5,147.44,1.2934]
[1726846266507,3.3897,147.5,147.47,3.3902]
[1726846266703,13.03,147.51,147.44,1.2934]
[1726846267999,3.3899,147.49,147.46,3.3904]
[1726846270812,3.3901,147.48,147.45,3.3907]
[1726846271009,33.39,147.51,147.45,3.3907]
[1726846271407,13.03,147.49,147.44,1.2934]
[1726846271712,13.03,147.49,147.43,3.391]
[1726846271713,33.39,147.49,147.4,4.72452281]
[1726846271909,3.3908,147.45,147.42,3.3913]
[1726846272307,33.39,147.49,147.42,3.3913]
[1726846272503,3.3911,147.44,147.41,3.3916]
[1726846272707,33.39,147.47,147.4,2.746]
[1726846273107,3.3911,147.44,147.41,3.3916]
[1726846274011,3.3909,147.45,147.42,3.3914]
[1726846274207,13.03,147.49,147.4,6.16954853]
[1726846274413,13.03,147.49,147.4,2.746]
[1726846274614,3.3902,147.48,147.45,3.3906]
[1726846274816,13.03,147.51,147.4,6.09968711]
[1726846275014,3.3901,147.48,147.45,3.3906]
[1726846275224,13.03,147.51,147.41,13.03]
[1726846275811,3.3901,147.48,147.45,3.3906]
[1726846279117,3.3901,147.48,147.41,13.03]
[1726846279323,3.39,147.49,147.46,3.3905]
[1726846280524,13.03,147.54,147.43,13.03]
[1726846281223,3.3895,147.51,147.48,3.39]
[1726846281821,3.3891,147.53,147.43,13.03]
[1726846282020,13.03,147.54,147.43,13.03]
[1726846282415,3.3893,147.52,147.49,3.3897]
[1726846282916,13.03,147.54,147.49,3.3897]
[1726846283115,3.3893,147.52,147.49,3.3897]
[1726846283817,13.03,147.52,147.4,12.88358711]
[1726846284018,13.03,147.52,147.41,13.03]
[1726846284218,3.3899,147.49,147.41,13.03]
[1726846284719,13.03,147.52,147.41,13.03]
[1726846284920,3.3897,147.5,147.41,13.03]
[1726846285527,3.3895,147.51,147.41,13.03]
[1726846285827,3.3895,147.51,147.43,13.03]
[1726846286129,3.3895,147.51,147.48,3.3899]
[1726846287030,3.3895,147.51,147.43,13.03]
[1726846287335,3.3892,147.52,147.43,13.03]
[1726846287833,3.389,147.53,147.45,13.03]
[1726846288032,3.389,147.53,147.46,4.0313]
[1726846288232,3.389,147.53,147.5,3.3895]
[1726846288537,3.389,147.53,147.48,3.42418968]
[1726846288721,3.389,147.53,147.46,4.0313]
[1726846289423,3.389,147.53,147.5,3.3895]
[1726846289625,33.39,147.56,147.46,4.0313]
[1726846289826,13.03,147.53,147.46,4.0313]
[1726846290629,13.03,147.53,147.49,3.3897]
[1726846290836,13.03,147.53,147.46,4.0313]
[1726846291934,13.03,147.51,147.46,4.0313]
[1726846292330,13.03,147.51,147.46,2.7091]
[1726846292741,13.03,147.49,147.42,1.298]
[1726846293031,13.03,147.49,147.42,3.9908]
[1726846293236,13.03,147.47,147.42,2.6928]
[1726846294232,3.3906,147.46,147.42,2.6928]
[1726846294432,13.03,147.49,147.42,2.6928]
[1726846295031,3.3904,147.47,147.44,3.3909]
[1726846297542,3.3906,147.46,147.44,3.3909]
[1726846297733,13.03,147.49,147.43,3.3911]
[1726846297932,13.03,147.47,147.42,2.6928]
[1726846298135,3.3909,147.45,147.42,2.6928]
[1726846298342,3.3909,147.45,147.42,6.0841]
[1726846298634,3.3909,147.45,147.38,137.0526]
[1726846298635,13.03,147.45,147.38,137.0526]
[1726846298836,13.03,147.43,147.38,135.64]
[1726846299138,13.03,147.43,147.37,2.8163]
[1726846299340,13.03,147.43,147.39,3.392]
[1726846300037,13.03,147.45,147.4,3.3919]
[1726846300243,13.03,147.45,147.37,2.8163]
[1726846300839,3.3913,147.43,147.4,3.3918]
[1726846301042,3.3913,147.43,147.37,2.8163]
[1726846302235,3.3913,147.43,147.4,3.3918]
[1726846302537,13.03,147.43,147.37,2.8163]
[1726846302740,13.03,147.43,147.38,3.3922]
[1726846302943,3.3919,147.41,147.38,3.3922]
[1726846303138,13.03,147.43,147.37,6.2088]
[1726846303542,3.392,147.4,147.37,6.2088]
[1726846304843,3.392,147.4,147.38,3.3924]
[1726846305145,13.03,147.43,147.37,2.8163]
[1726846305847,3.3919,147.4,147.38,3.3923]
[1726846306148,20.36,147.49,147.37,2.8163]
[1726846306446,33.39,147.47,147.41,3.3916]
[1726846306949,33.39,147.47,147.37,2.8163]
[1726846306950,3.3912,147.43,147.4,3.3918]
[1726846307151,33.39,147.47,147.37,2.8163]
[1726846307334,33.39,147.49,147.39,13.03]
[1726846307644,13.03,147.49,147.39,13.03]
[1726846307939,3.3902,147.48,147.45,3.3907]
[1726846308144,13.03,147.51,147.42,3.36092265]
[1726846308345,33.39,147.51,147.43,1.4135]
[1726846308942,23.761289,147.5,147.43,1.4135]
[1726846309242,13.03,147.48,147.43,1.4135]
[1726846309643,3.3906,147.46,147.43,4.8047]
[1726846311243,13.03,147.48,147.43,1.4135]
[1726846312851,3.3906,147.46,147.43,4.8047]
[1726846313451,3.3909,147.45,147.42,3.3914]
[1726846313652,3.3909,147.45,147.4,4.69215956]
[1726846313851,3.3906,147.46,147.43,3.3912]
[1726846314243,33.39,147.48,147.43,3.3912]
[1726846314439,13.03,147.44,147.39,1.2946]
[1726846314759,33.39,147.44,147.39,1.2946]
[1726846314943,3.392,147.4,147.37,4.7946]
[1726846315265,13.03,147.41,147.34,1.3671]
[1726846315455,3.3921,147.39,147.34,2.6828]
[1726846315952,13.03,147.41,147.34,2.6828]
[1726846316151,3.392,147.4,147.37,3.3926]
[1726846317248,3.392,147.4,147.34,2.6828]
[1726846317249,3.3917,147.41,147.38,3.3923]
[1726846317742,3.3919,147.4,147.37,3.3925]
[1726846317943,33.39,147.43,147.34,2.6828]
[1726846318348,13.03,147.43,147.37,3.3925]
[1726846318558,13.03,147.43,147.34,2.6828]
[1726846318853,3.3917,147.41,147.34,2.6828]
[1726846319558,3.3917,147.41,147.37,3.3924]
[1726846320058,13.03,147.43,147.37,3.3924]
[1726846320059,3.392,147.4,147.37,3.3924]
[1726846320445,13.03,147.46,147.34,15.7128]
[1726846320657,3.3914,147.43,147.34,15.7128]
[1726846321051,3.3914,147.43,147.39,3.3919]
[1726846321248,3.3915,147.42,147.39,3.3919]
[1726846321659,13.03,147.43,147.38,3.3923]
[1726846321858,13.03,147.41,147.34,2.6828]
[1726846322250,3.3918,147.41,147.34,2.6828]
[1726846322647,13.03,147.45,147.4,3.3918]
[1726846322852,3.3915,147.42,147.34,2.6828]
[1726846324557,3.3915,147.42,147.39,3.392]
[1726846325658,3.3913,147.43,147.34,2.6828]
[1726846325960,13.03,147.45,147.34,2.6828]
[1726846326258,3.3916,147.42,147.39,3.392]
[1726846326452,13.03,147.47,147.36,13.03]
[1726846326655,13.03,147.49,147.38,13.03]
[1726846326858,20.36,147.5,147.4,13.03]
[1726846327059,13.03,147.51,147.41,2.7202]
[1726846327248,3.3899,147.49,147.46,3.3904]
[1726846327847,3.3899,147.49,147.41,2.7202]
[1726846328049,3.3897,147.5,147.42,13.03]
[1726846328357,13.03,147.51,147.42,13.03]
[1726846328855,3.3899,147.49,147.46,3.3905]
[1726846330156,228.0,147.6,147.44,13.03]
[1726846330453,13.03,147.56,147.46,13.03]
[1726846330652,3.389,147.53,147.49,3.3897]
[1726846331054,13.03,147.56,147.51,3.3894]
[1726846331854,3.3886,147.55,147.51,3.3894]
[1726846332562,3.3887,147.54,147.51,3.3894]
[1726846333361,3.3887,147.54,147.5,3.3895]
[1726846334165,13.03,147.56,147.48,3.38690022]
[1726846334365,13.03,147.56,147.47,2.6113]
[1726846334667,3.3885,147.55,147.51,3.3892]
[1726846335559,3.3888,147.54,147.51,3.3892]
[1726846335764,3.3888,147.54,147.5,3.3895]
[1726846336569,3.3888,147.54,147.51,3.3892]
[1726846336767,13.03,147.58,147.48,3.36124483]
[1726846336971,13.03,147.58,147.47,2.6113]
[1726846337859,14.64,147.57,147.47,2.6113]
[1726846338063,3.3885,147.55,147.52,3.389]
[1726846341166,14.64,147.57,147.51,3.3893]
[1726846341366,14.64,147.55,147.47,2.6113]
[1726846341965,14.64,147.57,147.47,2.6113]
[1726846342366,14.64,147.55,147.47,2.6113]
[1726846342765,3.3889,147.54,147.5,3.3896]
[1726846342961,14.64,147.55,147.5,3.3896]
[1726846343363,3.3889,147.53,147.5,3.3896]
[1726846343568,3.3889,147.53,147.51,3.3893]
[1726846344369,3.3888,147.54,147.51,3.3893]
[1726846346576,18.0286,147.55,147.52,3.389]
[1726846346775,3.3886,147.55,147.52,3.389]
[1726846347166,3.3886,147.55,147.53,3.3889]
[1726846347668,3.3884,147.56,147.54,3.3886]
[1726846347870,14.64,147.59,147.54,3.3886]
[1726846348269,3.3882,147.57,147.54,3.3886]
[1726846348673,14.64,147.59,147.54,3.3886]
[1726846350970,3.3882,147.56,147.54,3.3886]
[1726846352578,14.64,147.55,147.47,2.6113]
[1726846352873,23.79749999,147.59,147.47,2.6113]
[1726846352874,14.64,147.53,147.47,2.6113]
[1726846354470,14.64,147.53,147.51,3.3893]
[1726846354471,18.029,147.53,147.51,3.3893]
[1726846354877,14.64,147.53,147.47,2.6113]
[1726846355488,3.3892,147.52,147.5,3.3895]
[1726846355777,14.64,147.55,147.48,3.33141229]
[1726846356177,3.389,147.53,147.5,3.3896]
[1726846356369,3.389,147.53,147.48,3.33141229]
[1726846356779,14.64,147.53,147.47,2.6113]
[1726846357078,14.64,147.5,147.45,1.3839]
[1726846357274,14.64,147.5,147.4,389.41110992]
[1726846357275,14.64,147.47,147.41,2.6999]
[1726846357468,14.64,147.47,147.41,1.3064]
[1726846357676,23.74294121,147.52,147.41,1.3064]
[1726846357978,18.0308,147.45,147.42,3.3913]
[1726846358371,14.64,147.45,147.43,3.3912]
[1726846359170,18.0308,147.45,147.43,3.3912]
[1726846359371,18.0308,147.45,147.42,3.3914]
[1726846361382,3.3911,147.44,147.41,1.3064]
[1726846361573,14.64,147.45,147.41,1.3064]
[1726846362180,18.0308,147.45,147.42,3.3913]
[1726846362374,14.64,147.47,147.41,1.3064]
[1726846362783,3.3906,147.46,147.43,3.3911]
[1726846363577,14.64,147.49,147.41,1.3064]
[1726846363982,14.64,147.49,147.45,3.3906]
[1726846363983,3.3901,147.48,147.45,3.3906]
[1726846364180,14.64,147.49,147.41,1.3064]
[1726846364385,14.64,147.47,147.41,1.3064]
[1726846364684,14.64,147.49,147.41,1.3064]
[1726846365383,3.3902,147.48,147.45,3.3906]
[1726846368279,14.64,147.49,147.41,1.3064]
[1726846368988,3.3902,147.48,147.45,3.3906]
[1726846371284,3.3904,147.47,147.41,1.3064]
[1726846371682,14.64,147.47,147.41,1.3064]
[1726846371988,3.3905,147.46,147.43,3.391]
[1726846372186,14.64,147.47,147.41,1.3064]
[1726846372386,14.64,147.49,147.41,1.3064]
[1726846372690,3.3901,147.48,147.45,3.3906]
[1726846372982,14.64,147.49,147.45,3.3906]
[1726846373591,3.3905,147.47,147.44,3.3909]
[1726846374089,14.64,147.46,147.43,3.3912]
[1726846374692,18.0306,147.46,147.43,3.3912]
[1726846375296,14.64,147.44,147.41,1.3064]
[1726846375592,14.64,147.42,147.39,1.3235]
[1726846375777,14.64,147.42,147.37,3.3924]
[1726846376294,14.64,147.42,147.38,3.3924]
[1726846376988,3.3918,147.41,147.38,3.3924]
[1726846378290,14.64,147.4,147.37,3.3926]
[1726846378789,3.3924,147.38,147.35,6.0382]
[1726846379380,3.3922,147.39,147.35,6.0382]
[1726846379988,3.3922,147.39,147.36,3.3927]
[1726846381992,14.64,147.38,147.27,14.64]
[1726846382182,14.64,147.38,147.29,2.7094]
[1726846382183,14.64,147.36,147.29,2.7094]
[1726846382387,3.3936,147.33,147.3,3.3941]
[1726846382590,14.64,147.34,147.29,2.7094]
[1726846382988,3.3939,147.32,147.29,2.7094]
[1726846383186,14.64,147.34,147.29,2.7094]
[1726846383381,3.3937,147.33,147.3,3.3941]
[1726846383586,14.64,147.34,147.29,2.7094]
[1726846383792,14.64,147.32,147.29,2.7094]
[1726846383984,3.3927,147.37,147.34,3.3932]
[1726846384695,14.64,147.39,147.29,17.3494]
[1726846385588,14.64,147.37,147.29,2.7094]
[1726846386197,3.3929,147.36,147.33,3.3934]
[1726846386499,14.64,147.37,147.29,2.7094]
[1726846386698,3.3929,147.36,147.33,3.3935]
[1726846387591,14.64,147.35,147.32,3.3936]
[1726846388397,18.0333,147.35,147.32,3.3936]
[1726846388992,14.64,147.33,147.29,2.7094]
[1726846389901,3.3938,147.32,147.29,6.1037]
[1726846390199,3.3938,147.32,147.29,4.7269]
[1726846390689,3.3938,147.32,147.29,3.3943]
[1726846391398,35.0,147.33,147.29,3.3944]
[1726846391795,14.64,147.31,147.25,2.7381]
[1726846391993,18.034,147.31,147.28,3.3945]
[1726846392193,18.034,147.31,147.25,2.7381]
[1726846393406,14.64,147.31,147.25,2.7381]
[1726846394209,18.0346,147.29,147.25,2.7381]
[1726846394391,14.64,147.29,147.25,2.7381]
[1726846394593,14.64,147.29,147.21,3.44774903]
[1726846394791,3.3949,147.28,147.25,3.3953]
[1726846395102,14.64,147.29,147.21,3.3896924]
[1726846395405,18.0346,147.29,147.26,3.3949]
[1726846395604,18.0346,147.29,147.22,3.37374354]
[1726846395801,14.64,147.29,147.27,3.3948]
[1726846396106,18.0344,147.3,147.27,3.3948]
[1726846396302,18.0344,147.3,147.22,3.31431676]
[1726846396608,14.64,147.3,147.22,14.64]
[1726846396911,14.64,147.33,147.22,17.98046454]
[1726846397105,3.3934,147.34,147.24,14.64]
[1726846397402,14.64,147.35,147.25,1.3424]
[1726846397591,14.64,147.35,147.26,2.6993]
[1726846398197,3.3934,147.34,147.31,3.3939]
[1726846398397,35.0,147.35,147.26,2.6993]
[1726846398598,3.3937,147.33,147.3,3.3941]
[1726846399908,3.3938,147.32,147.3,3.3941]
[1726846400101,3.3938,147.32,147.26,2.6993]
[1726846400308,35.0,147.34,147.26,2.6993]
[1726846400505,3.3938,147.32,147.26,2.6993]
[1726846400710,3.3938,147.32,147.29,3.3943]
[1726846400904,35.0,147.34,147.26,2.6993]
[1726846401410,3.3936,147.33,147.3,3.3941]
[1726846401610,35.0,147.34,147.3,3.3941]
[1726846402903,3.3938,147.32,147.3,3.3941]
[1726846404811,3.3938,147.32,147.29,3.3944]
[1726846405013,14.64,147.3,147.26,2.6993]
[1726846405213,14.64,147.3,147.25,1.3424]
[1726846405214,14.64,147.28,147.21,1.3945]
[1726846405510,14.64,147.28,147.26,3.3951]
[1726846405713,14.64,147.3,147.21,4.0892]
[1726846405909,14.64,147.3,147.28,3.3946]
[1726846406403,14.64,147.3,147.23,3.36536801]
[1726846406604,14.64,147.3,147.29,3.3944]
[1726846406799,14.64,147.3,147.23,3.44413772]
[1726846407003,14.64,147.3,147.27,3.3947]
[1726846407004,18.0342,147.3,147.27,3.3947]
[1726846408099,14.64,147.32,147.23,3.3266622]
[1726846408304,14.64,147.32,147.22,14.64]
[1726846408504,14.64,147.32,147.22,18.03626475]
[1726846408808,3.3941,147.31,147.28,3.3945]